bitfinex/quotes_ETHUSD_20220112
["timestamp","ask_amount","ask_price","bid_price","bid_amount"]
[1641964464857,0.00227369,3230.5,3230.4,7.55]
[1641964465459,0.00227369,3230.5,3230.4,3.1]
[1641964466210,0.00227369,3230.5,3230.4,5.74009917]
[1641964466909,2.37362781,3230.5,3230.4,5.74009917]
[1641964467104,2.37362781,3230.5,3230.4,3.1]
[1641964468206,0.00227369,3230.5,3230.4,3.1]
[1641964471756,0.00227369,3230.5,3230.4,5.75]
[1641964472157,0.00227369,3230.5,3230.4,3.1]
[1641964473557,0.00227369,3230.5,3230.4,5.74012442]
[1641964474808,0.00227369,3230.5,3230.4,3.1]
[1641964476809,0.00227369,3230.5,3230.4,5.74014277]
[1641964478964,0.00227369,3230.5,3230.4,3.1]
[1641964481806,0.00227369,3230.5,3230.4,5.74020742]
[1641964482105,0.77396,3230.7,3230.4,5.74020742]
[1641964482511,0.00284212,3230.6,3230.4,3.1]
[1641964482911,0.00227369,3230.5,3230.4,3.1]
[1641964483913,0.00227369,3230.5,3230.4,5.7401875]
[1641964490508,0.00227369,3230.5,3230.4,9.7401875]
[1641964496612,0.00227369,3230.5,3230.4,5.7401875]
[1641964497413,0.00227369,3230.5,3230.4,8.6401875]
[1641964498414,0.00227369,3230.5,3230.4,5.7401875]
[1641964509361,0.00227369,3230.5,3230.4,6.55698634]
[1641964509561,0.00227369,3230.5,3230.4,7.37378518]
[1641964513206,2.39941764,3230.7,3230.4,7.37378518]
[1641964513409,0.3,3230.8,3230.4,7.37378518]
[1641964513606,0.77680212,3230.6,3230.4,4.73359768]
[1641964514011,0.00227369,3230.5,3230.4,4.73359768]
[1641964514813,0.00227369,3230.5,3230.4,3.65109747]
[1641964515057,0.00227369,3230.5,3230.4,8.71946639]
[1641964515458,0.00227369,3230.5,3230.4,10.16446639]
[1641964515659,0.00227369,3230.5,3230.4,10.46446639]
[1641964515862,0.00227369,3230.5,3230.4,28.60446639]
[1641964516263,0.9787415,3231.7,3230.6,18.14]
[1641964516466,1.11391604,3231.9,3230.8,18.14]
[1641964516662,1.11391604,3231.9,3230.9,0.445]
[1641964516866,1.11391604,3231.9,3231.4,0.81679884]
[1641964517163,1.11391604,3231.9,3231.5,0.445]
[1641964517363,1.08248312,3231.6,3231.5,0.445]
[1641964517764,1.08873578,3231.6,3231.5,0.445]
[1641964518570,1.08873578,3231.6,3231.5,1.21848]
[1641964518826,1.08873578,3231.6,3231.5,0.445]
[1641964519226,1.08873578,3231.6,3231.5,5.395]
[1641964519627,1.08873578,3231.6,3231.5,7.62162655]
[1641964520027,1.08873578,3231.6,3231.5,7.57547924]
[1641964520229,1.08873578,3231.6,3231.5,5.395]
[1641964520729,1.08873578,3231.6,3231.5,0.445]
[1641964521827,2.49161592,3231.6,3231.5,3.545]
[1641964522128,2.49161592,3231.6,3231.5,4.36179884]
[1641964522328,2.49161592,3231.6,3231.5,5.17859768]
[1641964523360,1.08873578,3231.6,3231.5,5.17859768]
[1641964524165,1.38873578,3231.6,3231.5,5.17859768]
[1641964524465,1.08873578,3231.6,3231.5,5.17859768]
[1641964524866,1.68873578,3231.6,3231.5,5.17859768]
[1641964525166,1.08873578,3231.6,3231.5,5.17859768]
[1641964525366,2.43519672,3231.6,3231.5,5.17859768]
[1641964525565,1.38873578,3231.6,3231.5,5.17979593]
[1641964526408,1.68873578,3231.6,3231.5,5.17979593]
[1641964526808,1.38873578,3231.6,3231.5,5.17979593]
[1641964527009,1.08873578,3231.6,3231.5,5.17979593]
[1641964529810,1.08873578,3231.6,3231.5,5.17979591]
[1641964539773,1.68873578,3231.6,3231.5,5.17979591]
[1641964540977,1.38873578,3231.6,3231.5,5.17979591]
[1641964544118,1.08873578,3231.6,3231.5,5.17979591]
[1641964547664,1.08248312,3231.6,3231.5,5.17979591]
[1641964548922,1.08248312,3231.6,3231.5,5.17979583]
[1641964550822,1.08248312,3231.6,3231.5,4.73479583]
[1641964551021,1.08248312,3231.6,3231.5,4.73479581]
[1641964553159,1.08482921,3231.6,3231.5,4.73479581]
[1641964556225,0.95214221,3231.6,3231.5,4.73479581]
[1641964556512,0.77362,3231.8,3231.5,4.73479581]
[1641964556911,0.00682108,3231.7,3231.5,3.10119813]
[1641964557112,0.00682108,3231.7,3231.6,1.63359768]
[1641964557312,0.77362,3231.8,3231.6,1.63479578]
[1641964560484,1.07362,3231.8,3231.6,1.63479578]
[1641964561483,1.07362,3231.8,3231.6,1.53479578]
[1641964561882,1.07362,3231.8,3231.6,1.33479578]
[1641964562081,1.07362,3231.8,3231.6,0.81799694]
[1641964562281,1.07362,3231.8,3231.6,0.0011981]
[1641964562482,0.3,3231.8,3231.7,1.33359768]
[1641964562684,0.3,3231.8,3231.7,1.33479578]
[1641964562883,0.00738951,3231.8,3231.7,1.33479578]
[1641964563921,2.32664912,3231.8,3231.7,1.33479578]
[1641964564122,2.37003544,3231.8,3231.7,1.33479578]
[1641964564422,0.00738951,3231.8,3231.7,1.33479578]
[1641964574970,0.30738951,3231.8,3231.7,1.33479578]
[1641964575372,0.00738951,3231.8,3231.7,1.33479578]
[1641964582327,7.3,3231.7,3231.5,3.1]
[1641964582565,7.3,3231.7,3231.5,2.17195064]
[1641964582566,10.37233768,3231.6,3231.5,2.17195064]
[1641964582765,10.45578702,3231.6,3231.5,2.17195064]
[1641964582965,8.18344934,3231.6,3231.5,2.17195064]
[1641964583973,8.95730934,3231.6,3231.5,2.17195064]
[1641964584172,10.30096237,3231.6,3231.5,2.17195064]
[1641964587325,3.80096237,3231.6,3231.5,2.17195064]
[1641964587926,10.95096237,3231.6,3231.5,2.06368072]
[1641964588124,10.95096237,3231.6,3230.3,5.65575169]
[1641964588125,3.0959978,3231.0,3230.3,2.64114428]
[1641964588325,2.55063424,3231.0,3230.3,0.00119806]
[1641964588525,1.0022737,3230.9,3230.3,0.00119806]
[1641964588927,0.00170527,3230.8,3230.3,0.00119806]
[1641964589129,1.45873674,3230.4,3230.3,0.00119806]
[1641964589328,1.75873674,3230.4,3230.3,0.00119806]
[1641964589526,1.75873674,3230.4,3230.3,0.0023349]
[1641964589961,2.68743782,3230.4,3230.3,0.0023349]
[1641964592572,1.22870108,3230.4,3230.3,0.0023349]
[1641964593572,1.22870108,3230.4,3230.3,3.1023349]
[1641964593818,0.92870108,3230.4,3230.3,3.1023349]
[1641964594025,1.22870108,3230.4,3230.3,3.1023349]
[1641964594622,0.92870108,3230.4,3230.3,3.1023349]
[1641964596024,0.92870108,3230.4,3230.3,3.10233493]
[1641964598467,0.92870108,3230.4,3230.3,2.17362001]
[1641964601219,2.3220283,3230.6,3230.3,2.17362001]
[1641964601416,0.3,3230.5,3230.3,2.17362001]
[1641964601620,0.30113685,3230.5,3230.3,2.17362001]
[1641964602521,0.00113685,3230.5,3230.3,2.17362001]
[1641964603422,0.00113685,3230.5,3230.3,2.17362003]
[1641964608730,0.30113685,3230.5,3230.3,2.17362003]
[1641964611525,0.60113685,3230.5,3230.3,2.17362003]
[1641964612966,1.37519515,3230.5,3230.3,2.17362003]
[1641964613369,2.37519515,3230.5,3230.3,2.17362003]
[1641964616221,1.37519515,3230.5,3230.3,2.17362003]
[1641964617216,0.30113685,3230.5,3230.3,2.17362006]
[1641964620273,0.60113685,3230.5,3230.3,2.17362006]
[1641964620478,1.60113685,3230.5,3230.3,2.17362006]
[1641964620873,0.30113685,3230.5,3230.3,2.17362006]
[1641964622775,0.00113685,3230.5,3230.3,2.17362006]
[1641964623576,0.00113685,3230.5,3230.3,2.17362008]
[1641964624030,0.61883685,3230.5,3230.3,2.17362008]
[1641964624231,4.05,3230.3,3229.7,1.1884]
[1641964624429,0.77422,3230.1,3229.7,1.1884]
[1641964624631,0.77422,3230.1,3229.8,0.00284212]
[1641964624832,0.3,3230.0,3229.8,0.00284212]
[1641964625030,2.76544727,3229.9,3229.6,0.00397897]
[1641964625235,1.17671113,3229.8,3229.6,0.00397897]
[1641964625634,1.17671113,3229.8,3229.4,0.00511581]
[1641964625832,1.17671113,3229.8,3229.1,0.00682109]
[1641964626131,0.77427,3229.5,3229.1,0.00682109]
[1641964626532,1.12016123,3229.4,3229.1,0.00682109]
[1641964626930,0.77424,3229.3,3229.1,0.00682109]
[1641964627668,0.77424,3229.3,3229.2,2.64069055]
[1641964627968,0.77424,3229.3,3229.2,2.64694321]
[1641964628170,0.77686145,3229.3,3229.2,2.64694321]
[1641964630673,0.00262145,3229.3,3229.2,2.64694321]
[1641964633232,0.00531788,3229.3,3229.2,2.64694321]
[1641964636873,0.00531788,3229.3,3229.2,5.74694321]
[1641964641027,1.07620767,3229.4,3229.2,5.74694321]
[1641964641425,1.37620767,3229.4,3229.3,0.00568424]
[1641964642030,4.00966921,3229.4,3229.3,0.00568424]
[1641964642227,5.30966921,3229.4,3229.3,0.00568424]
[1641964642878,5.30966921,3229.4,3229.2,5.74069055]
[1641964643077,3.49667686,3229.3,3229.2,3.1]
[1641964643681,3.49667686,3229.3,3229.2,2.17086167]
[1641964645781,2.49667686,3229.3,3229.2,2.17086167]
[1641964645983,7.01011671,3229.4,3229.2,2.17086167]
[1641964646231,4.47618451,3229.4,3229.2,2.17086167]
[1641964646718,0.3,3229.3,3229.2,2.17086167]
[1641964646918,2.55916491,3229.3,3229.2,2.17086167]
[1641964647317,2.55916491,3229.3,3228.6,3.624]
[1641964647318,1.19282636,3229.0,3228.6,3.624]
[1641964647522,1.39082806,3228.8,3228.6,3.624]
[1641964647723,1.39082806,3228.8,3228.7,3.40341054]
[1641964648726,1.39082806,3228.8,3228.7,6.04446527]
[1641964649624,0.77431,3229.1,3228.7,6.04446527]
[1641964649824,2.32559644,3229.4,3228.7,6.04446527]
[1641964650071,2.32559644,3229.4,3228.8,0.00284212]
[1641964650471,2.32559644,3229.4,3228.8,2.64389685]
[1641964650773,1.21096481,3228.9,3228.8,5.84105473]
[1641964651175,1.21096481,3228.9,3228.8,5.84389685]
[1641964653076,1.21096481,3228.9,3228.8,2.64389685]
[1641964653277,1.21539922,3228.9,3228.8,2.64389685]
[1641964653728,1.21539922,3228.9,3228.8,4.00284212]
[1641964654525,1.21539922,3228.9,3228.8,6.64389685]
[1641964662439,1.21539922,3228.9,3228.8,2.64389685]
[1641964663841,1.21539922,3228.9,3228.8,0.00284212]
[1641964664242,1.21539922,3228.9,3228.4,0.00511581]
[1641964664643,1.36809851,3228.7,3228.4,0.00511581]
[1641964665277,1.36809851,3228.7,3228.5,2.64105473]
[1641964665677,1.36809851,3228.7,3228.6,5.30397896]
[1641964666883,1.98976922,3228.9,3228.6,5.30397896]
[1641964667088,1.98976922,3228.9,3228.6,7.94503369]
[1641964667283,1.98976922,3228.9,3228.7,0.00341054]
[1641964667884,1.21539922,3228.9,3228.7,0.00341054]
[1641964668084,0.00219098,3228.8,3228.7,2.64446527]
[1641964673080,0.00443758,3228.8,3228.7,2.64446527]
[1641964679328,0.00443758,3228.8,3228.7,0.00341054]
[1641964679731,0.00443758,3228.8,3228.3,0.00568423]
[1641964681387,0.00443758,3228.8,3228.4,2.64105473]
[1641964681785,0.00443758,3228.8,3228.5,0.00454739]
[1641964682590,0.00443758,3228.8,3228.6,2.64105473]
[1641964682989,0.00443758,3228.8,3228.7,0.00341054]
[1641964683185,0.0022466,3228.8,3228.7,0.00341054]
[1641964684134,0.0022466,3228.8,3228.3,0.00568423]
[1641964684335,0.0022466,3228.8,3228.7,2.64105473]
[1641964684735,0.0022466,3228.8,3228.7,0.00341054]
[1641964685139,0.0022466,3228.8,3228.5,2.10604839]
[1641964685337,0.0022466,3228.8,3228.6,0.00397896]
[1641964686040,0.0022466,3228.8,3228.5,0.00454739]
[1641964686236,0.0022466,3228.8,3228.7,2.64105473]
[1641964686636,0.0022466,3228.8,3228.7,2.64446527]
[1641964687038,0.0022466,3228.8,3228.7,0.00341054]
[1641964687685,0.0022466,3228.8,3228.7,2.64446527]
[1641964688080,0.00443365,3228.8,3228.7,2.64446527]
[1641964688281,0.00443365,3228.8,3228.7,0.00341054]
[1641964688686,0.00443365,3228.8,3228.5,0.00454739]
[1641964688884,0.00443365,3228.8,3228.5,2.07596024]
[1641964689084,0.00443365,3228.8,3228.5,0.00454739]
[1641964689283,0.00443365,3228.8,3228.6,0.00397896]
[1641964689484,0.00443365,3228.8,3228.5,0.00454739]
[1641964689786,0.00443365,3228.8,3228.6,2.64105473]
[1641964690190,0.00443365,3228.8,3228.7,0.00341054]
[1641964692425,0.00443365,3228.8,3228.7,2.64446527]
[1641964692625,0.00443365,3228.8,3228.7,2.64105473]
[1641964692827,0.00443365,3228.8,3228.7,2.64446527]
[1641964693428,0.00443365,3228.8,3228.7,0.00341054]
[1641964693831,0.00443365,3228.8,3228.7,2.64105473]
[1641964694231,0.00443365,3228.8,3228.7,2.64446527]
[1641964694431,0.00443365,3228.8,3228.7,0.00341054]
[1641964694984,0.00443365,3228.8,3228.6,0.00397896]
[1641964695387,0.00443365,3228.8,3228.7,2.64105473]
[1641964695787,0.00443365,3228.8,3228.7,2.64446527]
[1641964696787,0.00443365,3228.8,3228.7,0.00341054]
[1641964697287,0.00443365,3228.8,3228.4,0.00511581]
[1641964697488,0.00443365,3228.8,3228.4,2.08964965]
[1641964697990,0.00443365,3228.8,3228.5,0.00454739]
[1641964698188,0.00443365,3228.8,3228.5,2.64560212]
[1641964698387,0.00443365,3228.8,3228.5,2.64105473]
[1641964698587,0.00443365,3228.8,3228.6,0.00397896]
[1641964699027,0.00443365,3228.8,3228.6,2.64503369]
[1641964699526,0.00443365,3228.8,3228.7,0.00341054]
[1641964699927,0.00443365,3228.8,3228.7,2.64446527]
[1641964700827,0.00443365,3228.8,3228.7,0.00341054]
[1641964701229,0.00443365,3228.8,3228.4,0.00511581]
[1641964701428,0.77441,3228.6,3228.4,0.00511581]
[1641964701629,0.00443365,3228.8,3228.4,0.00511581]
[1641964701827,0.00443365,3228.8,3228.4,2.08645457]
[1641964702027,0.00443365,3228.8,3228.3,0.00568423]
[1641964702572,1.33595127,3228.4,3228.3,0.00568423]
[1641964702771,1.33595127,3228.4,3228.3,2.08159169]
[1641964702973,1.33595127,3228.4,3228.3,0.00568423]
[1641964703175,1.33595127,3228.4,3228.3,6.95568423]
[1641964703574,1.33595127,3228.4,3228.3,7.95568423]
[1641964708135,1.34038715,3228.4,3228.3,7.95568423]
[1641964716837,1.34038715,3228.4,3228.3,10.59703363]
[1641964717236,1.34038715,3228.4,3228.3,9.59703363]
[1641964718478,1.64038715,3228.4,3228.3,2.64703363]
[1641964718682,1.94038715,3228.4,3228.3,2.64703363]
[1641964718881,1.64038715,3228.4,3228.3,2.64703363]
[1641964719982,1.94038715,3228.4,3228.3,2.64703363]
[1641964720180,1.64038715,3228.4,3228.3,2.64703363]
[1641964720781,1.94038715,3228.4,3228.3,2.64703363]
[1641964720983,4.59038715,3228.4,3228.3,2.64703363]
[1641964721825,1.94038715,3228.4,3228.3,2.64703363]
[1641964722428,1.94038715,3228.4,3228.3,0.00568423]
[1641964722827,1.94038715,3228.4,3227.8,0.00852635]
[1641964723028,1.21912966,3228.1,3227.8,0.00852635]
[1641964723328,1.21912966,3228.1,3227.7,0.00909477]
[1641964724332,1.4067479,3227.8,3227.3,2.2092227]
[1641964724532,0.00443588,3228.4,3227.8,2.6418825]
[1641964724733,0.00443588,3228.4,3227.9,2.12694648]
[1641964724974,0.00443588,3228.4,3227.9,2.13490441]
[1641964725175,0.00443588,3228.4,3228.0,0.0073895]
[1641964726577,0.00443588,3228.4,3228.1,2.6418825]
[1641964726977,0.00443588,3228.4,3228.2,0.00625266]
[1641964727578,0.00443588,3228.4,3228.2,2.14550233]
[1641964727978,0.92920453,3228.6,3228.3,0.00568423]
[1641964728379,0.92920453,3228.6,3228.3,2.64756673]
[1641964728732,0.92920453,3228.6,3228.4,2.18554255]
[1641964729132,0.92920453,3228.6,3228.5,8.70454739]
[1641964729331,0.92920453,3228.6,3228.5,11.09087759]
[1641964729531,0.92920453,3228.6,3228.5,9.14954739]
[1641964729933,0.92920453,3228.6,3228.5,12.79142989]
[1641964730732,1.19984183,3229.3,3228.5,12.79142989]
[1641964731135,1.19984183,3229.3,3228.6,0.00397896]
[1641964731733,1.97411183,3229.3,3228.6,0.00397896]
[1641964731933,1.97411183,3229.3,3228.6,1.00397896]
[1641964732133,1.19984183,3229.3,3228.7,2.6418825]
[1641964732332,1.19984183,3229.3,3228.7,2.64529304]
[1641964733180,1.20562597,3229.3,3228.7,2.64529304]
[1641964733986,0.00578414,3229.3,3228.8,4.84746973]
[1641964734384,0.00578414,3229.3,3228.9,0.00227369]
[1641964734787,0.00578414,3229.3,3228.9,2.64415619]
[1641964735186,0.00578414,3229.3,3229.0,1.00170527]
[1641964735588,0.00578414,3229.3,3229.1,0.00113685]
[1641964736327,0.00578414,3229.3,3229.0,0.00170527]
[1641964737128,0.00578414,3229.3,3228.9,1.00227369]
[1641964737328,0.00578414,3229.3,3228.9,0.00227369]
[1641964737530,0.00578414,3229.3,3229.0,0.00170527]
[1641964737728,0.00578414,3229.3,3228.9,0.00227369]
[1641964738128,0.00577557,3229.2,3228.9,0.00227369]
[1641964738628,0.00577557,3229.2,3228.9,3.10227369]
[1641964739033,0.00577557,3229.2,3229.0,0.00170527]
[1641964739432,0.00577557,3229.2,3229.0,2.64358777]
[1641964739832,0.00577557,3229.2,3229.1,0.00113685]
[1641964748376,0.00577557,3229.2,3229.0,0.00170527]
[1641964748578,0.00577557,3229.2,3229.0,3.64274833]
[1641964748800,0.00577557,3229.2,3229.0,2.64274833]
[1641964749082,0.00577557,3229.2,3229.1,4.01801503]
[1641964749281,0.00577557,3229.2,3229.1,6.65905809]
[1641964758729,0.00577557,3229.2,3229.1,5.65905809]
[1641964759134,0.00577557,3229.2,3229.1,3.08717991]
[1641964760334,0.00577557,3229.2,3229.1,2.64217991]
[1641964760533,0.00577557,3229.2,3229.1,0.00113685]
[1641964760733,1.17676981,3229.2,3229.1,0.00113685]
[1641964760932,1.17676981,3229.2,3228.9,3.1]
[1641964760933,1.17676981,3229.2,3229.0,0.00170527]
[1641964763193,0.00291866,3229.1,3229.0,0.00170527]
[1641964765497,1.3063141,3229.1,3229.0,0.00170527]
[1641964766533,3.64119079,3229.1,3229.0,0.00170527]
[1641964767133,1.3063141,3229.1,3229.0,0.00170527]
[1641964768035,1.31038366,3229.1,3229.0,0.00170527]
[1641964768233,0.00698822,3229.1,3229.0,0.00170527]
[1641964773299,0.00698822,3229.1,3229.0,2.64296096]
[1641964774138,0.00698822,3229.1,3229.0,6.25272428]
[1641964779289,0.00698822,3229.1,3229.0,4.08796096]
[1641964787194,0.00698822,3229.1,3229.0,6.34025403]
[1641964788745,0.00698822,3229.1,3229.0,4.08796096]
[1641964790950,0.00698822,3229.1,3229.0,4.08625569]
[1641964794502,0.00698822,3229.1,3229.0,6.39398229]
[1641964795096,0.00698822,3229.1,3229.0,4.08625569]
[1641964795297,0.00698822,3229.1,3229.0,6.39241115]
[1641964795698,0.00698822,3229.1,3229.0,24.53241115]
[1641964796536,0.00698822,3229.1,3229.0,6.39241115]
[1641964796733,0.00698822,3229.1,3229.0,10.35441458]
[1641964798334,0.00698822,3229.1,3229.0,6.39241115]
[1641964801905,0.00698822,3229.1,3229.0,4.08625569]
[1641964804838,0.00698822,3229.1,3229.0,5.60637361]
[1641964805044,0.00698822,3229.1,3229.0,5.65712122]
[1641964807588,0.00698822,3229.1,3229.0,5.60637361]
[1641964809305,0.00698822,3229.1,3229.0,4.08625569]
[1641964811539,0.00698822,3229.1,3229.0,5.80235834]
[1641964813342,8.822e-05,3229.1,3229.0,5.80235834]
[1641964813541,8.822e-05,3229.1,3229.0,24.24235834]
[1641964813743,8.822e-05,3229.1,3229.0,24.29310595]
[1641964813946,1.11466038,3229.7,3229.0,24.59310595]
[1641964814147,1.11466038,3229.7,3229.3,0.77384]
[1641964814346,0.00170527,3229.6,3229.4,2.83969909]
[1641964814545,0.00170527,3229.6,3229.5,12.05618374]
[1641964814748,1.11466038,3229.7,3229.5,12.80118374]
[1641964815002,1.11466038,3229.7,3229.6,8.7]
[1641964815187,1.11466038,3229.7,3229.6,9.445]
[1641964815386,1.11693408,3229.7,3229.6,10.445]
[1641964815789,1.11693408,3229.7,3229.6,13.86009569]
[1641964817388,1.11693408,3229.7,3229.6,13.08625569]
[1641964817989,1.11937002,3229.7,3229.6,13.08625569]
[1641964818190,1.12175619,3229.7,3229.6,13.08625569]
[1641964819056,1.12175619,3229.7,3229.6,16.18625569]
[1641964824298,1.12175619,3229.7,3229.6,15.88625569]
[1641964826933,1.12175619,3229.7,3229.6,16.18625569]
[1641964830393,1.11401551,3229.7,3229.6,16.18625569]
[1641964830593,0.0022737,3229.7,3229.6,16.18625569]
[1641964830993,0.0022737,3229.7,3229.6,15.88625569]
[1641964831595,0.0022737,3229.7,3229.6,16.66008569]
[1641964831995,0.0022737,3229.7,3229.6,16.96008569]
[1641964832197,7.37e-05,3229.7,3229.6,35.13343777]
[1641964832396,0.92869064,3230.4,3229.6,35.13343777]
[1641964832397,0.92869064,3230.4,3229.9,1.5473]
[1641964832596,0.92869064,3230.4,3230.2,0.77365]
[1641964832796,0.92869064,3230.4,3230.3,9.145]
[1641964832995,0.92869064,3230.4,3230.3,10.4895]
[1641964833195,0.92869064,3230.4,3230.3,11.1895]
[1641964833196,0.9326696,3230.4,3230.3,11.1895]
[1641964833597,0.9326696,3230.4,3230.3,11.4895]
[1641964834039,0.9326696,3230.4,3230.3,14.13075569]
[1641964836140,0.00397896,3230.4,3230.3,14.13075569]
[1641964839297,0.00397896,3230.4,3230.3,17.23075569]
[1641964842038,0.00397896,3230.4,3230.3,16.93075569]
[1641964844044,0.00397896,3230.4,3230.3,14.2895]
[1641964845085,0.00397896,3230.4,3230.3,16.92949507]
[1641964845784,0.00397896,3230.4,3230.3,17.39379459]
[1641964845983,0.00397896,3230.4,3230.3,17.69379459]
[1641964850846,0.00397896,3230.4,3230.3,15.05379952]
[1641964852148,0.00397896,3230.4,3230.3,17.69376434]
[1641964854889,0.00397896,3230.4,3230.3,35.83376434]
[1641964858945,0.00397896,3230.4,3230.3,44.83376434]
[1641964860302,0.00397896,3230.4,3230.3,25.39376434]
[1641964861502,0.00397896,3230.4,3230.3,25.69376434]
[1641964861704,0.00397896,3230.4,3230.3,26.69376434]
[1641964863108,0.00133138,3230.5,3230.3,26.69376434]
[1641964863303,0.00133138,3230.5,3230.4,1.0]
[1641964863503,0.00133138,3230.5,3230.4,1.445]
[1641964863740,0.00587876,3230.5,3230.4,1.445]
[1641964863945,0.00587876,3230.5,3230.4,3.08496482]
[1641964864144,0.00587876,3230.5,3230.4,5.24805886]
[1641964864345,0.00587876,3230.5,3230.4,13.24805886]
[1641964865047,7.876e-05,3230.5,3230.4,13.24805886]
[1641964865249,0.92849736,3231.1,3230.8,0.77348]
[1641964865447,0.92849736,3231.1,3230.9,20.9713302]
[1641964865648,0.00284212,3231.0,3230.9,18.885]
[1641964865847,0.92849736,3231.1,3231.0,17.64715788]
[1641964866051,0.92849736,3231.1,3231.0,18.39215788]
[1641964866449,0.92849736,3231.1,3231.0,19.87965168]
[1641964866651,0.92849736,3231.1,3231.0,38.95325168]
[1641964867499,9.736e-05,3231.1,3231.0,38.95325168]
[1641964867690,0.92841774,3231.4,3231.0,41.59262958]
[1641964867889,0.92841774,3231.4,3231.2,0.77343]
[1641964868090,0.92841774,3231.4,3231.3,9.095]
[1641964868288,0.92841774,3231.4,3231.3,11.80989872]
[1641964868488,0.93069143,3231.4,3231.3,9.395]
[1641964868689,0.93069143,3231.4,3231.3,11.67178855]
[1641964870294,0.93069143,3231.4,3231.3,9.095]
[1641964870495,0.93069143,3231.4,3231.3,0.445]
[1641964870697,0.93069143,3231.4,3231.3,3.545]
[1641964871842,0.93069143,3231.4,3231.3,4.545]
[1641964872045,0.93069143,3231.4,3231.3,4.845]
[1641964872445,0.93069143,3231.4,3231.3,4.545]
[1641964873243,0.93069143,3231.4,3231.3,7.245]
[1641964875293,0.93069143,3231.4,3231.3,3.545]
[1641964875491,0.93069143,3231.4,3231.3,3.1]
[1641964876993,0.93069143,3231.4,3231.3,4.1]
[1641964877197,0.93069143,3231.4,3231.3,8.15]
[1641964879645,0.93069143,3231.4,3231.3,11.32338024]
[1641964879846,0.00227369,3231.4,3231.3,11.62338024]
[1641964880247,0.00227369,3231.4,3231.3,14.77338024]
[1641964880644,0.00227369,3231.4,3231.3,17.41266535]
[1641964880844,0.00227369,3231.4,3231.3,17.11266535]
[1641964881046,0.00227369,3231.4,3231.3,13.96266535]
[1641964882345,0.00227369,3231.4,3231.3,11.53428511]
[1641964884704,0.00227369,3231.4,3231.3,35.86204607]
[1641964884901,0.00227369,3231.4,3231.3,36.06174607]
[1641964886343,0.00227369,3231.4,3231.3,35.85773656]
[1641964886543,0.00227369,3231.4,3231.3,35.56273656]
[1641964887144,0.00227369,3231.4,3231.3,35.53128511]
[1641964887544,0.00227369,3231.4,3231.3,35.56393755]
[1641964887948,0.00227369,3231.4,3231.3,16.79128511]
[1641964888144,0.00227369,3231.4,3231.3,17.56472511]
[1641964890213,0.00227369,3231.4,3231.3,14.92544]
[1641964891012,0.00227369,3231.4,3231.3,14.152]
[1641964891416,0.00227369,3231.4,3231.3,14.92544]
[1641964894351,0.00227369,3231.4,3231.3,9.36844]
[1641964895952,0.00227369,3231.4,3231.3,8.595]
[1641964898296,0.00227369,3231.4,3231.3,8.895]
[1641964898493,0.92826315,3231.9,3231.3,8.895]
[1641964898796,0.00454739,3231.8,3231.3,8.895]
[1641964899196,0.00397896,3231.7,3231.3,8.895]
[1641964899597,0.00341054,3231.6,3231.3,8.895]
[1641964899998,0.00284212,3231.5,3231.3,8.895]
[1641964900397,0.00227369,3231.4,3231.3,8.895]
[1641964900998,0.00227369,3231.4,3231.3,8.595]
[1641964901949,0.00227369,3231.4,3231.3,11.8344325]
[1641964903358,0.00227369,3231.4,3231.3,11.2344325]
[1641964904556,0.00227369,3231.4,3231.3,8.595]
[1641964905004,0.00227369,3231.4,3231.3,11.345]
[1641964905399,0.00227369,3231.4,3231.3,13.98451213]
[1641964905597,0.00227369,3231.4,3231.3,11.23451213]
[1641964905799,0.00227369,3231.4,3231.3,7.18451213]
[1641964907202,0.00227369,3231.4,3231.3,4.545]
[1641964907903,0.00227369,3231.4,3231.3,11.095]
[1641964908846,0.00227369,3231.4,3231.3,13.73454343]
[1641964911255,0.00227369,3231.4,3231.3,11.095]
[1641964913295,0.00227369,3231.4,3231.3,13.73454483]
[1641964913695,0.00227369,3231.4,3231.3,14.03454483]
[1641964914099,0.00227369,3231.4,3231.3,7.18454483]
[1641964914299,0.00227369,3231.4,3231.3,6.73954483]
[1641964914900,0.00227369,3231.4,3231.3,9.48954483]
[1641964915101,0.00227369,3231.4,3231.3,6.73954483]
[1641964915601,1.97236215,3231.9,3231.4,4.4]
[1641964915799,1.14182531,3231.9,3231.4,4.4]
[1641964916000,0.0022737,3231.8,3231.4,4.4]
[1641964916453,1.14182531,3231.9,3231.4,4.4]
[1641964916454,0.00170527,3231.7,3231.4,4.4]
[1641964916847,0.00113685,3231.6,3231.4,4.4]
[1641964918151,0.00113685,3231.6,3231.5,6.15]
[1641964921808,0.00113685,3231.6,3231.5,8.78946308]
[1641964948555,1.18129988,3232.0,3231.5,8.78946308]
[1641964948756,0.77357,3231.9,3231.5,8.78946308]
[1641964948958,0.77641212,3231.9,3231.5,8.78946308]
[1641964949659,0.77641212,3231.9,3231.6,2.63946308]
[1641964951103,0.3,3231.8,3231.6,2.63946308]
[1641964951306,1.84743,3231.8,3231.6,2.63946308]
[1641964951504,3.50170527,3231.7,3231.6,2.63946308]
[1641964951909,0.30170527,3231.7,3231.6,2.63946308]
[1641964952304,0.00170527,3231.7,3231.3,3.1]
[1641964952506,0.7737,3231.6,3231.3,3.1]
[1641964952709,0.77483685,3231.6,3231.3,3.1]
[1641964953007,1.37483685,3231.6,3231.3,3.1]
[1641964953853,2.14855685,3231.6,3231.3,3.1]
[1641964954055,1.54855685,3231.6,3231.3,3.1]
[1641964955858,0.00113685,3231.6,3231.3,3.1]
[1641964956658,0.00113685,3231.6,3231.4,2.63967114]
[1641964957507,0.00113685,3231.6,3231.3,3.1]
[1641964958106,0.00239414,3231.6,3231.3,3.1]
[1641964958706,0.25239414,3231.8,3231.3,3.1]
[1641964959204,0.25239414,3231.8,3231.4,0.00113685]
[1641964959405,0.25239414,3231.8,3231.4,2.64076159]
[1641964959606,1.54721,3231.9,3231.4,2.64076159]
[1641964960007,0.00113685,3231.8,3231.4,2.64076159]
[1641964961949,0.77362,3231.7,3231.4,2.64076159]
[1641964963551,0.77362,3231.7,3231.4,0.00113685]
[1641964963860,1.88758731,3231.7,3231.4,0.00113685]
[1641964964654,1.88758731,3231.7,3231.4,2.64080439]
[1641964965904,1.11396731,3231.7,3231.4,2.64080439]
[1641964966605,1.01396731,3231.7,3231.4,2.64080439]
[1641964966803,0.00228984,3231.8,3231.4,2.64080439]
[1641964968109,0.00115074,3231.7,3231.4,2.64080439]
[1641964970952,0.00115074,3231.7,3231.4,0.00113685]
[1641964971152,0.00115074,3231.7,3231.4,1.00113685]
[1641964971753,0.00115074,3231.7,3231.4,3.64080361]
[1641964971953,0.77367,3231.6,3231.4,2.64080361]
[1641964972152,1.54734,3231.6,3231.4,2.64080361]
[1641964972604,0.00115074,3231.7,3231.4,2.64080361]